bitfinex-derivatives/quotes_ETHF0:USTF0_20250224
["timestamp","ask_amount","ask_price","bid_price","bid_amount"]
[1740386282111,0.74214,2694.6,2694.3,0.7422]
[1740386282311,0.00556,2694.6,2694.5,0.74216]
[1740386282719,3.2078,2695.6,2694.4,3.2078]
[1740386283011,3.193,2695.3,2695.2,0.74197]
[1740386283212,3.193,2695.3,2695.0,3.94981]
[1740386283213,0.74195,2695.3,2695.0,3.94981]
[1740386283416,3.188,2695.4,2694.7,3.2078]
[1740386283721,3.184,2695.3,2694.8,0.55004138]
[1740386283921,3.2078,2695.0,2694.0,3.21336659]
[1740386284111,3.2078,2694.3,2693.4,2.5797]
[1740386284311,3.93225,2694.2,2693.9,0.7423]
[1740386284522,3.93227,2694.1,2693.4,5.7875]
[1740386284815,3.93227,2694.1,2693.9,0.74231]
[1740386285024,3.19,2694.1,2693.4,5.7875]
[1740386285213,3.19,2694.1,2694.0,0.7423]
[1740386285409,3.19,2694.1,2693.8,0.74234]
[1740386285614,0.74236,2693.8,2693.5,0.00556659]
[1740386285916,3.2078,2694.0,2693.6,0.55027773]
[1740386286223,0.74241,2693.6,2693.5,0.00556659]
[1740386286421,3.92141,2693.6,2693.5,0.55600608]
[1740386286618,0.74257,2693.0,2692.8,3.2078]
[1740386286825,3.176,2693.1,2692.9,0.55046304]
[1740386287025,3.91854,2693.1,2693.0,0.55046304]
[1740386288018,3.2078,2693.5,2693.0,0.55046304]
[1740386288224,3.171,2693.4,2693.3,0.74249]
[1740386288421,3.171,2693.4,2693.3,0.55046304]
[1740386288621,3.171,2693.4,2693.3,1.29295304]
[1740386288918,3.2078,2695.7,2693.3,30.35126304]
[1740386289121,6.59e-06,2694.3,2694.2,3.95004]
[1740386289424,6.59e-06,2694.3,2694.2,4.50050304]
[1740386290020,6.59e-06,2694.3,2694.2,4.50011207]
[1740386290220,6.59e-06,2694.3,2694.2,13.76211207]
[1740386290418,3.2078,2696.5,2694.9,1.85508]
[1740386290621,3.268,2696.4,2696.1,3.2078]
[1740386290821,3.268,2696.4,2695.7,3.2078]
[1740386291028,3.268,2696.4,2695.7,0.74181]
[1740386291323,0.74177,2695.9,2695.8,3.2078]
[1740386291523,3.262,2695.9,2695.8,0.00556659]
[1740386291724,4.00377,2695.9,2695.8,0.00556659]
[1740386292121,3.99877,2695.9,2695.8,0.00556659]
[1740386292319,3.257,2695.9,2695.8,0.00556659]
[1740386292526,3.99877,2695.9,2695.8,0.00556659]
[1740386293920,13.20657,2695.9,2695.8,6.59e-06]
[1740386294122,6.4648,2695.9,2694.7,3.2078]
[1740386294323,0.74205,2694.9,2694.7,3.94989]
[1740386294633,0.74205,2694.9,2694.1,3.2078]
[1740386294634,3.2078,2694.8,2694.1,3.2078]
[1740386294921,1.85554,2694.3,2693.7,3.2078]
[1740386295124,0.74243,2693.6,2693.4,0.74246]
[1740386295322,0.74242,2693.6,2693.4,0.74246]
[1740386295522,0.74235,2693.8,2693.7,0.00556659]
[1740386295723,3.95015,2693.8,2693.7,0.00556659]
[1740386296225,8.45296659,2694.7,2693.7,0.00556659]
[1740386296422,0.7423,2694.0,2693.8,0.74233]
[1740386296622,3.2078,2694.1,2694.0,0.74228]
[1740386296822,0.74225,2694.2,2694.0,0.74228]
[1740386297024,3.246,2694.6,2693.8,3.2078]
[1740386297229,0.74223,2694.3,2693.7,0.00556659]
[1740386297430,3.244,2694.5,2693.7,0.00556659]
[1740386297926,0.74227,2694.1,2693.7,0.00556659]
[1740386298224,0.74231,2694.0,2693.7,0.00556659]
[1740386298423,3.244,2694.5,2693.7,0.00556659]
[1740386298622,0.74229,2694.1,2693.7,0.00556659]
[1740386298822,6.4518,2694.5,2693.7,0.00556659]
[1740386299026,0.74228,2694.1,2693.9,0.74231]
[1740386299530,3.2078,2694.2,2693.7,0.00556659]
[1740386299832,3.2078,2693.9,2692.6,5.8048]
[1740386300033,0.74258,2693.0,2692.7,0.54768195]
[1740386300229,0.74255,2693.1,2693.0,0.74256]
[1740386300434,0.74254,2693.2,2692.6,7.66147]
[1740386300729,3.2078,2693.3,2693.2,0.74252]
[1740386301222,0.74232,2694.0,2693.8,0.74234]
[1740386301427,0.74234,2693.9,2693.7,0.74235]
[1740386301728,0.74234,2693.9,2693.8,0.74235]
[1740386302127,3.231,2694.0,2693.5,3.2078]
[1740386302328,0.74241,2693.6,2693.5,3.2078]
[1740386302530,0.74241,2693.6,2693.5,3.95022]
[1740386302731,0.74241,2693.6,2693.5,3.2078]
[1740386303033,0.74244,2693.5,2693.4,0.74245]
[1740386303231,0.74236,2693.8,2693.7,0.74236]
[1740386303420,6.4388,2694.0,2693.4,1.85616]
[1740386303627,0.00556659,2694.2,2693.3,4.43732]
[1740386303628,0.74780659,2694.2,2694.1,0.74227]
[1740386303831,0.7423,2694.0,2693.7,3.2078]
[1740386304022,0.00556659,2694.2,2693.7,3.2078]
[1740386304231,0.00556659,2694.2,2694.0,3.2078]
[1740386304628,0.74232,2694.0,2693.9,3.95011]
[1740386304835,0.74233,2693.9,2693.8,0.74233]
[1740386305142,0.74233,2693.9,2693.6,3.2078]
[1740386305143,0.74227,2694.1,2694.0,0.74229]
[1740386305434,0.00556659,2694.2,2694.1,0.74227]
[1740386305827,0.00556659,2694.2,2694.0,0.74228]
[1740386306029,0.00556659,2694.2,2694.1,0.74227]
[1740386306231,0.74780659,2694.2,2694.1,0.74227]
[1740386306424,0.00556659,2694.2,2693.9,3.2078]
[1740386306630,0.7423,2694.0,2693.9,0.74232]
[1740386306931,0.74232,2693.9,2693.8,0.74234]
[1740386307131,0.74232,2693.9,2693.8,1.29129625]
[1740386307638,0.74232,2694.0,2693.9,0.74231]
[1740386307830,0.74229,2694.1,2694.0,0.74228]
[1740386308031,0.74232,2694.0,2693.9,0.7423]
[1740386308231,0.74232,2694.0,2693.9,1.29180871]
[1740386308832,0.00556659,2694.2,2693.8,3.2078]
[1740386309025,0.74232,2694.0,2693.9,0.7423]
[1740386309225,0.74229,2694.1,2694.0,0.74227]
[1740386309424,0.74232,2693.9,2693.8,3.95014]
[1740386309635,0.74232,2693.9,2693.8,4.50034377]
[1740386309835,0.74232,2693.9,2693.8,4.50034761]
[1740386310139,0.00556659,2694.2,2693.8,3.75800761]
[1740386310336,0.7423,2694.1,2694.0,0.74227]
[1740386310536,0.00556659,2694.2,2694.1,0.74227]
[1740386310739,0.00556659,2694.2,2694.1,4.50033266]
[1740386311036,0.00556659,2694.2,2694.1,3.75806266]
[1740386311235,0.00556659,2694.2,2694.1,0.55024708]
[1740386312034,0.00556659,2694.2,2693.7,3.2078]
[1740386312244,0.00556659,2694.2,2693.8,0.55029564]
[1740386312435,0.00556659,2694.2,2693.9,0.55029564]
[1740386312636,3.165,2694.1,2693.7,3.2078]
[1740386312838,3.165,2694.1,2693.8,0.55029233]
[1740386313038,3.165,2694.1,2693.9,0.55029233]
[1740386313241,3.165,2694.1,2693.7,3.2078]
[1740386313431,3.165,2694.1,2693.8,0.55036999]
[1740386313631,3.165,2694.1,2693.7,3.2078]
[1740386313837,3.165,2694.1,2693.8,0.55037682]
[1740386314035,3.165,2694.1,2693.7,3.2078]
[1740386314434,3.165,2694.1,2693.3,8.4058]
[1740386314636,3.165,2694.1,2693.3,5.7889]
[1740386314835,3.2078,2693.8,2693.3,5.7889]
[1740386315235,3.2078,2693.8,2692.9,3.2078]
[1740386315444,0.74257,2693.0,2692.9,3.2078]
[1740386316237,0.74257,2693.0,2692.9,3.9504]
[1740386316435,0.74257,2693.0,2692.9,3.2078]
[1740386317043,5.00323,2693.4,2692.6,0.00556659]
[1740386317044,3.2078,2693.1,2692.6,0.00556659]
[1740386317243,0.74265,2692.7,2692.6,0.00556659]
[1740386317940,3.95045,2692.7,2692.6,0.00556659]
[1740386318134,3.95045,2692.7,2692.1,3.2078]
[1740386318135,3.2078,2692.7,2692.1,3.2078]
[1740386318338,0.74279,2692.2,2692.1,3.2078]
[1740386318642,1.85692,2692.3,2691.6,2.488]
[1740386318838,3.136,2692.4,2691.8,3.2078]
[1740386319038,3.136,2692.4,2691.9,0.74286]
[1740386319244,3.136,2692.4,2691.8,3.2078]
[1740386319544,0.74285,2692.0,2691.9,0.74841659]
[1740386320136,5.80086659,2692.4,2691.9,0.00556659]
[1740386320337,0.74283,2692.1,2692.0,0.74282]
[1740386320539,5.80086659,2692.4,2692.0,0.74284]
[1740386320740,5.80086659,2692.4,2691.9,0.00556659]
[1740386320937,0.74285,2692.0,2691.9,0.00556659]
[1740386321143,0.74285,2692.0,2691.9,0.74844659]
[1740386321838,0.74284,2692.1,2692.0,0.74283]
[1740386322445,0.74285,2692.0,2691.9,0.74839659]
[1740386322639,0.74284,2692.1,2692.0,0.74282]
[1740386322835,7.65774659,2692.4,2692.0,0.74283]
[1740386323040,0.74285,2692.0,2691.9,0.74842659]
[1740386324648,0.74285,2692.0,2691.9,0.00556659]
[1740386325757,0.74307,2691.2,2691.1,3.30627]
[1740386326045,0.74312,2691.0,2690.9,40.8]
[1740386326240,0.74312,2691.0,2690.7,5.6889]
[1740386326438,0.74317,2690.9,2690.8,0.74316]
[1740386326645,0.74316,2690.9,2690.8,0.74315]
[1740386326947,2.647,2691.4,2690.7,46.4889]
[1740386327241,3.087,2691.3,2690.7,46.4889]
[1740386327447,0.74309,2691.2,2691.1,0.74309]
[1740386327848,3.087,2691.3,2690.7,48.34689]
[1740386328653,0.74309,2691.2,2690.7,48.34689]
[1740386328842,3.087,2691.3,2690.7,46.4889]
[1740386329039,0.74311,2691.1,2691.0,0.74311]
[1740386329248,3.087,2691.3,2691.1,0.74307]
[1740386329438,0.7431,2691.1,2691.0,0.74311]
[1740386330338,0.7432,2690.8,2690.7,0.7432]
[1740386330548,3.2078,2691.1,2690.6,0.00556659]
[1740386330750,0.74321,2690.7,2690.6,0.00556659]
[1740386331152,3.73021,2690.7,2690.6,0.00556659]
[1740386331352,1.85821,2690.5,2690.0,0.74339]
[1740386331553,1.85823,2690.4,2689.8,3.2078]
[1740386331742,0.74342,2690.0,2689.9,0.74342]
[1740386331947,3.066,2690.3,2689.8,3.2078]
[1740386332148,0.74343,2689.9,2689.8,3.2078]
[1740386332347,3.066,2690.3,2689.5,3.2078]
[1740386332645,3.066,2690.3,2689.8,3.2078]
[1740386332852,0.74341,2690.0,2689.9,0.74341]
[1740386333256,3.066,2690.3,2689.8,3.2078]
[1740386333454,0.74339,2690.1,2689.9,0.74341]
[1740386333649,3.2078,2690.8,2690.6,0.74323]
[1740386333855,3.2078,2690.8,2689.9,5.06635]
[1740386333856,6.2668,2690.8,2689.9,5.06635]
[1740386334056,0.00556659,2691.0,2690.2,6.92449]
[1740386334245,0.00556659,2691.0,2690.9,0.74315]
[1740386334650,3.06756659,2691.0,2690.9,0.74315]
[1740386334850,3.81068659,2691.0,2690.9,0.74315]
[1740386335049,3.06756659,2691.0,2690.9,0.74315]
[1740386335761,0.00556659,2691.0,2690.9,0.74315]
[1740386336854,0.74325,2690.6,2690.4,5.2037]
[1740386337063,0.00556659,2691.0,2690.4,5.2037]
[1740386337264,0.00556659,2691.0,2690.6,3.2078]
[1740386337450,0.00556659,2691.0,2690.9,0.74315]
[1740386337656,0.00556659,2691.0,2690.6,3.2078]
[1740386337865,0.00556659,2691.0,2690.9,0.74315]
[1740386337866,0.74871659,2691.0,2690.9,0.74315]
[1740386338064,3.04956659,2691.0,2690.9,0.74315]
[1740386338567,0.00556659,2691.0,2690.9,3.95095]
[1740386340470,6.1948,2692.9,2691.4,3.71497]
[1740386340769,3.2078,2692.5,2691.9,3.2078]
[1740386340965,0.74289,2691.9,2691.8,0.74289]
[1740386341161,3.2078,2692.2,2691.5,2.6365]
[1740386341361,3.062,2692.1,2691.8,3.2078]
[1740386341669,0.74289,2691.9,2691.8,0.74289]
[1740386342469,3.06756659,2692.1,2692.0,0.74285]
[1740386342668,0.00556659,2692.1,2692.0,3.95065]
[1740386342865,0.00556659,2692.1,2692.0,0.74285]
[1740386343070,0.74838659,2692.1,2692.0,0.74285]
[1740386343364,0.00556659,2692.1,2692.0,0.74285]
[1740386343567,6.59e-06,2692.1,2692.0,0.74285]
[1740386343878,0.74282659,2692.1,2692.0,3.2078]
[1740386344065,3.06000659,2692.1,2692.0,3.2078]
[1740386344368,3.06000659,2692.1,2692.0,3.95065]
[1740386344569,3.80282659,2692.1,2692.0,3.2078]
[1740386345272,3.06000659,2692.1,2691.6,0.00556659]
[1740386345567,4.91710659,2692.1,2691.7,0.74292]
[1740386345772,0.74293,2691.8,2691.7,0.74292]
[1740386346272,0.74293,2691.8,2691.6,0.00556659]
[1740386346273,0.74293,2691.7,2691.6,0.00556659]
[1740386346575,0.74293,2691.7,2691.1,1.85771]
[1740386346576,0.74317,2690.9,2690.8,0.74317]
[1740386346871,1.85728,2691.8,2690.3,1.85824]
[1740386346872,3.049,2691.1,2690.5,3.2078]
[1740386347066,3.049,2691.1,2690.2,5.06617]
[1740386347369,0.7432,2690.8,2690.5,3.2078]
[1740386347574,3.049,2691.1,2690.5,3.2078]
[1740386347776,0.74317,2690.9,2690.8,0.74316]
[1740386348167,2.7765,2691.4,2691.3,0.74304]
[1740386348467,5.065,2691.9,2691.5,0.74299]
[1740386348468,0.74297,2691.6,2691.5,0.74299]
[1740386348668,3.043,2691.6,2691.5,0.74299]
[1740386348974,3.043,2691.6,2690.9,2.5753]
[1740386349274,0.74313,2691.0,2690.9,0.74313]
[1740386349669,3.042,2691.1,2690.5,3.2078]
[1740386349865,0.74322,2690.7,2690.6,0.74322]
[1740386350064,0.74323,2690.6,2690.5,3.2078]
[1740386350263,0.74323,2690.6,2690.4,0.00556659]
[1740386350264,0.74326,2690.5,2690.4,0.00556659]
[1740386351172,0.00556659,2690.7,2690.6,0.74323]
[1740386351368,3.04456659,2690.7,2690.4,0.00556659]
[1740386351569,0.74323,2690.6,2690.5,0.74325]
[1740386351774,3.78777659,2690.7,2690.6,0.74323]
[1740386352075,0.74325,2690.6,2690.5,0.74325]
[1740386352269,3.04456659,2690.7,2690.4,0.00556659]
[1740386352873,3.78778659,2690.7,2690.6,0.74323]
[1740386353076,3.04456659,2690.7,2690.6,0.74323]
[1740386353279,3.78777659,2690.7,2690.6,0.74323]
[1740386353472,3.04456659,2690.7,2690.4,0.00556659]
[1740386353678,0.74326,2690.5,2690.4,0.74882659]
[1740386353976,3.04456659,2690.7,2690.6,0.74323]
[1740386354181,0.74326,2690.5,2690.4,0.00556659]
[1740386355380,0.76444069,2690.5,2690.4,0.74885659]
[1740386355568,0.02118069,2690.5,2690.4,0.74885659]
[1740386355774,0.76444069,2690.5,2690.4,0.00556659]
[1740386356269,0.76444069,2690.5,2690.4,0.74885659]
[1740386356580,0.76444069,2690.5,2690.4,0.00556659]
[1740386357879,0.02118069,2690.5,2690.0,0.74339]
[1740386358080,0.74336,2690.2,2690.1,0.74334]
[1740386358283,3.75136,2690.2,2690.1,0.74334]
[1740386358477,3.02918069,2690.2,2690.1,0.74337]
[1740386358676,0.02118069,2690.2,2690.1,0.74337]
[1740386359380,0.02118069,2690.2,2690.0,0.74338]
[1740386359679,0.7434,2690.1,2690.0,0.74338]
[1740386359886,0.7434,2690.0,2689.9,0.74713445]
[1740386360477,0.74355,2689.6,2689.3,5.8472]
[1740386360683,0.74356,2689.5,2689.4,0.74353]
[1740386360982,0.74356,2689.5,2689.3,5.8472]
[1740386360983,5.06654,2689.7,2689.3,3.2078]
[1740386361178,0.74368,2689.0,2688.9,0.74368]
[1740386361380,3.74066,2689.1,2689.0,0.74365]
[1740386361579,3.01818069,2689.1,2689.0,0.74368]
[1740386361779,0.02118069,2689.1,2689.0,0.74368]
[1740386362386,0.02118069,2689.1,2689.0,6.17518]
[1740386362879,0.02118069,2689.1,2689.0,0.74368]
[1740386363279,6.9e-07,2689.1,2689.0,0.74368]
[1740386363481,0.00557735,2689.3,2689.2,0.74362]
[1740386363785,0.00557735,2689.3,2689.2,3.95142]
[1740386364182,0.00557735,2689.3,2689.2,44.75142]
[1740386364685,2.99,2690.4,2689.2,50.0078]
[1740386364882,2.99,2690.4,2690.3,0.74332]
[1740386365186,2.99,2690.4,2689.9,3.2078]
[1740386365385,0.74338,2690.1,2690.0,0.74338]
[1740386365683,3.73331,2690.4,2690.3,0.74332]
[1740386365980,0.00557735,2690.3,2690.2,0.74332]
[1740386367484,0.74322,2690.7,2690.6,0.74321]
[1740386367878,2.978,2690.8,2690.7,0.74321]
[1740386368078,2.978,2690.8,2689.9,3.2078]
[1740386368279,0.74327,2690.5,2690.4,0.74327]
[1740386368481,2.978,2690.8,2690.2,3.2078]
[1740386368682,0.74879735,2690.7,2690.6,0.74322]
[1740386369283,0.00557735,2690.7,2690.6,0.74322]
[1740386371283,0.74878735,2690.7,2690.6,0.74322]
[1740386371488,0.00557735,2690.7,2690.6,0.74322]
[1740386373286,0.74878735,2690.7,2690.6,0.74322]
[1740386373489,0.00557735,2690.7,2690.6,0.74322]
[1740386375085,0.00557735,2690.7,2690.5,3.2078]
[1740386375586,0.3078504,2693.4,2691.2,3.2078]
[1740386375889,4.92329507,2695.5,2690.6,33.8378476]
[1740386375890,2.0562,2693.8,2693.0,3.2078]
[1740386376091,2.0562,2693.8,2693.4,0.74246]
[1740386376285,2.0562,2693.8,2693.7,0.74238]
[1740386376481,0.00557735,2694.0,2693.5,0.00557735]
[1740386376690,0.74243,2693.6,2693.5,0.00557735]
[1740386376884,3.86643,2693.6,2693.5,0.00557735]
[1740386377595,3.86243,2693.6,2693.5,0.00557735]
[1740386378283,9.12,2693.6,2692.8,3.2078]
[1740386378483,9.12,2693.6,2693.0,0.74256]
[1740386378484,3.95029,2693.3,2693.0,0.74256]
[1740386378794,3.95029,2693.3,2692.9,0.74258]
[1740386378982,3.2078,2693.3,2692.8,3.2078]
[1740386379186,3.9503,2693.3,2693.0,0.74257]
[1740386379382,3.2078,2693.3,2693.1,0.74253]
[1740386379588,3.95029,2693.3,2693.1,0.74253]
[1740386379788,3.2078,2693.3,2693.1,0.74253]
[1740386379997,3.103,2693.2,2693.1,0.74253]
[1740386380294,3.103,2693.2,2692.9,0.00557735]
[1740386380493,0.74257,2693.0,2692.9,0.00557735]
[1740386380792,2.1506,2693.7,2693.6,0.74241]
[1740386380793,5.3584,2693.7,2693.6,0.74241]
[1740386380998,5.2376,2693.9,2693.3,3.2078]
[1740386381291,3.108,2693.9,2693.8,0.74235]
[1740386381490,3.108,2693.9,2693.3,3.2078]
[1740386381688,3.108,2693.9,2693.5,0.74242]
[1740386381890,0.74242,2693.6,2693.4,0.74245]
[1740386382198,3.108,2693.9,2693.3,3.2078]
[1740386382496,3.108,2693.9,2693.0,3.2078]
[1740386382695,3.2078,2693.5,2693.0,0.74254]
[1740386382896,0.74251,2693.3,2693.1,0.74254]
[1740386383195,0.74249,2693.3,2693.0,0.74255]
[1740386383399,5.2947,2693.4,2692.9,0.00557735]
[1740386383592,0.74251,2693.3,2693.1,0.74253]
[1740386383794,0.7425,2693.3,2693.1,0.74253]
[1740386383996,5.2947,2693.4,2692.9,0.00557735]
[1740386384194,5.2947,2693.4,2693.3,0.74249]
[1740386384892,3.101,2693.4,2693.3,0.74249]
[1740386385098,5.3608,2693.8,2693.3,0.74249]
[1740386385099,5.3608,2693.8,2693.7,0.74238]
[1740386385300,3.088,2693.8,2693.7,0.74238]
[1740386385897,0.00557735,2694.0,2693.9,0.74232]
[1740386386206,0.00557735,2694.0,2693.6,3.2078]
[1740386386207,0.74234,2693.9,2693.7,0.74237]
[1740386386800,3.09557735,2694.0,2693.6,3.2078]
[1740386387097,3.09557735,2694.0,2693.8,0.74234]
[1740386387398,0.74233,2693.9,2693.8,0.74234]
[1740386387594,3.09557735,2694.0,2693.6,3.2078]
[1740386387999,3.09557735,2694.0,2693.9,0.74232]
[1740386388400,0.00557735,2694.0,2693.9,0.74232]
[1740386388900,3.082,2694.3,2694.2,0.74224]
[1740386389098,0.74214,2694.6,2694.0,1.85571]
[1740386389297,0.74214,2694.6,2694.1,1.85564]
[1740386389500,0.7422,2694.4,2693.9,7.30706]
[1740386389696,2.90194,2694.6,2694.5,0.74216]
[1740386389892,5.2264,2694.7,2694.0,1.85575]
[1740386390096,5.2264,2694.7,2694.6,0.74213]
[1740386390097,3.084,2694.7,2694.6,0.74213]
[1740386390396,3.95545669,2694.8,2694.7,0.7421]
[1740386390598,3.09556669,2694.8,2694.7,0.7421]
[1740386390901,0.7421,2694.7,2694.6,0.74211]
[1740386391107,0.74212,2694.7,2694.6,0.74213]
[1740386391294,3.83766669,2694.8,2694.6,0.74212]
[1740386391494,6.30336669,2694.8,2694.3,0.00556669]
[1740386391695,0.74219,2694.4,2694.3,0.00556669]
[1740386392094,3.2078,2694.5,2694.3,0.00556669]
[1740386392302,0.74219,2694.4,2694.3,0.00556669]
[1740386394501,0.74219,2694.4,2692.7,6.66718]
[1740386394502,2.1236,2694.4,2693.2,3.2078]
[1740386394707,5.06345,2694.2,2693.2,5.06406]
[1740386395104,0.74238,2693.7,2693.6,2.9069]
[1740386395808,3.064,2693.8,2693.4,2.16766669]
[1740386396011,0.74243,2693.6,2693.5,0.74242]
[1740386396211,0.74243,2693.5,2693.4,2.91010669]
[1740386396408,3.064,2693.8,2693.4,2.16766669]
[1740386396606,0.74243,2693.5,2693.4,0.74802669]
[1740386396807,0.74243,2693.5,2693.4,0.00556669]
[1740386396808,3.95023,2693.5,2693.4,0.00556669]
[1740386397015,2.0755,2693.7,2693.4,0.00556669]
[1740386397207,0.74243,2693.5,2693.4,0.74801669]
[1740386397410,3.2078,2693.8,2693.7,0.74238]
[1740386397609,6.2708,2693.8,2693.7,0.74238]
[1740386397810,0.74232,2694.0,2693.9,0.74231]
[1740386398010,0.74231,2694.0,2693.9,0.74231]
[1740386398211,3.062,2694.1,2693.6,2.1677]
[1740386398413,0.74238,2693.7,2693.6,2.9101]
[1740386398606,5.06355,2694.0,2693.4,0.00556669]
[1740386398806,0.74243,2693.5,2693.4,0.74800669]
[1740386399312,0.74243,2693.5,2693.4,0.00556669]
[1740386399516,3.79942,2693.6,2693.5,0.74243]
[1740386399718,0.74243,2693.5,2693.4,0.00556669]
[1740386399917,0.74243,2693.5,2693.4,0.74802669]
[1740386400113,0.74243,2693.5,2693.4,0.00556669]
[1740386400420,3.05,2693.5,2693.4,0.00556669]
[1740386400814,3.05,2693.8,2693.7,0.74238]
[1740386401319,5.2833,2694.5,2694.3,0.74221]
[1740386401520,7.03112,2694.4,2693.6,5.06382]
[1740386401823,0.74225,2694.3,2694.2,0.74223]
[1740386402026,5.1756,2694.4,2694.3,0.74221]
[1740386402322,0.74223,2694.3,2694.2,0.74222]
[1740386402621,5.1756,2694.4,2693.7,2.1328]
[1740386402813,0.74221,2694.3,2694.2,0.74223]
[1740386403321,0.7422,2694.4,2694.3,0.74221]
[1740386403624,0.74234,2693.9,2693.8,0.74233]
[1740386403827,0.74233,2694.0,2693.9,0.74231]
[1740386404025,0.74234,2693.9,2693.8,0.74234]
[1740386404517,0.74235,2693.8,2693.7,2.87518]
[1740386404719,0.74235,2693.8,2693.7,0.74238]
[1740386405022,1.85568,2694.1,2693.4,0.00556669]
[1740386405222,2.1114,2694.1,2693.5,1.85605]
[1740386405420,2.1114,2694.1,2693.6,0.54557681]
[1740386405616,0.74234,2693.9,2693.8,0.74233]
[1740386405824,3.77834,2693.9,2693.8,1.28790681]
[1740386406718,6.2438,2693.9,2693.6,0.74239]
[1740386406919,0.74237,2693.8,2693.7,1.28798592]
[1740386407316,0.74237,2693.8,2693.7,1.2879931]
[1740386407517,6.98615,2693.9,2693.8,0.74235]
[1740386407713,6.98615,2693.9,2693.8,0.5456331]
[1740386408823,3.2078,2695.0,2694.7,0.7421]
[1740386409327,3.2078,2695.0,2694.7,1.28774849]
[1740386409528,3.2078,2695.0,2694.7,3.40724849]
[1740386410421,3.2078,2695.0,2694.7,2.66514849]
[1740386410622,3.94984,2695.0,2694.7,3.40724849]
[1740386410923,3.2078,2695.0,2694.7,3.40724849]
[1740386411125,3.94984,2695.0,2694.7,3.40724849]
[1740386411320,3.2078,2695.0,2694.7,3.40724849]
[1740386412325,3.77164669,2694.8,2694.7,0.28873201]
[1740386413330,3.02956669,2694.8,2694.1,3.2078]
[1740386413526,0.7422,2694.4,2694.3,0.7422]
[1740386413732,4.88480669,2694.8,2694.1,3.2078]
[1740386414028,0.74215,2694.6,2694.5,0.74214]
[1740386414225,3.94992,2694.7,2694.6,0.74213]
[1740386414419,3.2078,2694.7,2694.1,3.2078]
[1740386414620,3.2078,2694.7,2694.4,0.74217]
[1740386414621,0.74217,2694.5,2694.4,0.74217]
[1740386414926,0.74224,2694.2,2694.1,3.95006]
[1740386415131,3.2078,2694.7,2694.1,3.2078]
[1740386415430,0.74217,2694.5,2694.4,0.74217]
[1740386415630,0.74215,2694.6,2694.5,0.74213]
[1740386415832,3.2078,2694.7,2694.6,0.74213]
[1740386416032,0.00556669,2694.8,2694.4,3.2078]
[1740386416226,0.74213,2694.6,2694.5,0.74216]
[1740386416428,0.74212,2694.7,2694.6,0.74211]
[1740386416627,0.74764669,2694.8,2694.7,0.7421]
[1740386417433,0.74212,2694.7,2694.6,0.74212]
[1740386418027,0.00556669,2694.8,2694.4,5.4627]
[1740386418334,0.74766669,2694.8,2694.7,0.7421]
[1740386418635,0.00556669,2694.8,2694.4,5.4627]
[1740386418829,0.74766669,2694.8,2694.7,0.7421]
[1740386419337,0.00556669,2694.8,2694.4,5.4627]
[1740386420524,0.00556669,2694.8,2694.5,2.1208]
[1740386421336,3.21336669,2694.8,2694.5,2.1208]
[1740386421632,3.21336669,2694.8,2694.4,5.4627]
[1740386422329,0.00556669,2694.8,2694.4,5.4627]
[1740386422732,3.21336669,2694.8,2694.4,5.4627]
[1740386423937,3.21336669,2694.8,2694.0,6.1618]
[1740386424527,3.94960121,2694.8,2694.0,6.1618]
[1740386424928,3.21336669,2694.8,2694.0,6.1618]
[1740386425333,0.00556669,2694.8,2694.3,3.2078]
[1740386426336,0.00556669,2694.8,2694.0,6.1618]
[1740386426733,0.00556669,2694.8,2694.3,3.2078]
[1740386431946,3.21336669,2694.8,2694.3,3.2078]
[1740386438644,0.00556669,2694.8,2694.7,3.2078]
[1740386439049,0.00556669,2694.8,2694.4,3.2078]
[1740386439753,0.00556669,2694.8,2694.7,3.2078]
[1740386440349,0.00556669,2694.8,2694.4,3.2078]
[1740386440752,0.00556669,2694.8,2694.5,2.2163]
[1740386440951,0.00556669,2694.8,2694.6,2.1875]
[1740386441855,0.00556669,2694.8,2694.5,2.2163]
[1740386442050,0.00556669,2694.8,2694.1,3.2078]
[1740386442654,2.91356669,2694.8,2694.1,3.2078]
[1740386442854,7.53076669,2694.8,2694.1,3.2078]
[1740386443248,0.74217,2694.5,2694.4,0.74216]
[1740386443449,0.73726811,2694.7,2694.1,3.2078]
[1740386443747,0.7422,2694.4,2694.3,0.74219]
[1740386444749,0.74219,2694.4,2694.3,0.74218]
[1740386445353,0.74217,2694.5,2694.4,0.74217]
[1740386446145,0.7422,2694.4,2694.3,0.74219]
[1740386446545,2.59255811,2694.7,2694.1,3.2078]
[1740386446546,0.74223,2694.3,2694.2,0.74223]
[1740386446852,0.7422,2694.4,2694.3,0.74219]
[1740386447056,0.74224,2694.3,2694.2,0.74223]
[1740386447247,0.74224,2694.3,2694.1,3.2078]
[1740386447248,3.2078,2694.6,2694.1,3.2078]
[1740386448148,3.2078,2694.2,2693.4,0.00556669]
[1740386448353,7.2205,2694.1,2693.4,0.00556669]
[1740386448665,2.887,2694.5,2693.9,3.2078]
[1740386448855,2.887,2694.5,2694.2,3.2078]
[1740386449056,3.21336669,2694.8,2694.2,3.2078]
[1740386449251,6.10136669,2694.8,2694.7,0.7421]
[1740386449455,3.21336669,2694.8,2694.7,0.7421]
[1740386449756,0.00556669,2694.8,2694.7,0.7421]
[1740386450754,0.74764669,2694.8,2694.7,0.7421]
[1740386450956,0.00556669,2694.8,2694.7,0.7421]
[1740386452861,3.2078,2695.3,2695.2,0.74197]
[1740386453059,0.73810766,2695.5,2695.4,0.74191]
[1740386453261,2.875,2695.8,2695.2,3.2078]
[1740386453759,0.74187,2695.6,2695.5,0.74187]
[1740386454060,0.74184,2695.7,2695.6,0.74183]